Cogmind - Beta 12 @@@ ROGUE MODE // 2023.06.10 @ 22:54:24 Player: Mr Goldstein Result: Destroyed by DAS Turret with DAS Cannon Performance ------------- Evolutions (0) 0 Regions Visited (3) 600 Robots Destroyed (36) 180 Value Destroyed (918) 918 Prototype IDs (29) 580 Alien Tech Used (0) 0 Bonus (300) 300 TOTAL SCORE: 2578 Bonus ------- Aligned with FarCom 300 Cogmind --------- Core Integrity 0/250 Matter 300/300 Energy 98/100 System Corruption 2% Temperature Cool (0) Movement Rolling (135) Ox3 Location -10/Exiles Parts ------- > --- POWER (1) -------- (None) > --- PROPULSION (2) --- Wheel Compact Wheel > --- UTILITY (2) ------ Improved Heat Sink Huge Storage Unit > --- WEAPON (2) ------- Heavy EM Pulse Gun > --- INVENTORY (25) --- Wheel Wheel Heat Sink Improved Heat Sink Medium Battery (150) High-capacity Matter Pod (200) High-capacity Matter Pod (200) Signal Interpreter Army-in-a-Box (30/30) Heavy EM Pulse Gun Medium Laser Particle Gun Assault Rifle Assault Rifle Light Assault Rifle Light Assault Rifle Light Assault Rifle Light Assault Rifle Grenade Launcher Field Lobotomy Kit (5) Peak State ------------ > --- POWER ------------ Light Nuclear Core > --- PROPULSION ------- Wheel Compact Wheel > --- UTILITY ---------- Improved Heat Sink Huge Storage Unit > --- WEAPON ----------- Heavy EM Pulse Gun Heavy EM Pulse Gun > --- INVENTORY -------- Wheel Wheel Heat Sink Improved Heat Sink Medium Battery High-capacity Matter Pod High-capacity Matter Pod Signal Interpreter Army-in-a-Box Heavy EM Pulse Gun Medium Laser Particle Gun Assault Rifle Assault Rifle Light Assault Rifle Light Assault Rifle Light Assault Rifle Light Assault Rifle Grenade Launcher Field Lobotomy Kit [Rating: 21] Favorites ----------- Power Light Nuclear Core Engine Light Ion Engine Power Core Light Nuclear Core Propulsion Compact Wheel Wheel Compact Wheel Utility Improved Heat Sink Device Improved Heat Sink Storage Huge Storage Unit Weapon Heavy EM Pulse Gun Energy Gun Heavy EM Pulse Gun Ballistic Gun Assault Rifle Build | -11 -10 -10 -10 ------- Run | Jun Mat Min Exi Slots Evolved . | . . . . Power . | . . . . Propulsion . | . . . . Utility . | . . . . Weapon . | . . . . Parts Attached 23 | 6 14 3 . Power 4 | 1 2 1 . Engine 3 | 1 2 . . Core 1 | . . 1 . Reactor . | . . . . Propulsion 5 | 2 2 1 . Treads . | . . . . Leg . | . . . . Wheel 5 | 2 2 1 . Hover . | . . . . Flight . | . . . . Utility 5 | 1 4 . . Device 2 | . 2 . . Storage 3 | 1 2 . . Processor . | . . . . Hackware . | . . . . Protection . | . . . . Artifact . | . . . . Weapon 9 | 2 6 1 . Energy Gun 5 | . 4 1 . Energy Cannon . | . . . . Ballistic Gun 4 | 2 2 . . Ballistic Cannon . | . . . . Launcher . | . . . . Special Weapon . | . . . . Impact Weapon . | . . . . Slashing Weapon . | . . . . Piercing Weapon . | . . . . Special Melee Weapon . | . . . . Unidentified Prototypes . | . . . . Parts Lost 10 | . 6 2 2 Power 4 | . 3 . 1 Propulsion 2 | . 1 1 . Utility 1 | . 1 . . Weapon 3 | . 1 1 1 Highest Loss Streak 3 | . 3 1 2 To Critical Strikes . | . . . . Average Slot Usage (%) 95 | . 91 100 98 Engine 6 | . 11 1 . Core 5 | . . 12 13 Wheel 27 | . 26 28 28 Device 13 | . 12 14 14 Storage 14 | . 14 14 14 Energy Gun 17 | . 8 28 27 Ballistic Gun 9 | . 17 . . Naked Turns . | . . . . Heaviest Build 92 | 11 92 92 92 Greatest Support 32 | 26 32 32 26 Greatest Overweight (x) 3 | . 2 3 3 Average Overweight (x) 2 | . 1 2 3 Largest Inventory Capacity 25 | 8 25 25 25 Average Capacity 22 | 7 20 25 25 Most Carried 25 | 1 17 20 25 Average Carried 13 | . 9 17 21 Final Capacity 25 | 8 25 25 25 Final Carried 25 | 1 16 20 25 Class Distribution -------------------- 100% | Mutant Dominant Class ---------------- Mutant | -10/Materials Mutant | -10/Mines Mutant | -10/Exiles Resources | -11 -10 -10 -10 ----------- Run | Jun Mat Min Exi Matter Collected 1226 | 240 942 44 . Remotely . | . . . . Salvage Created 1305 | . 1056 249 . Parts 85 | . 69 16 . Haulers Intercepted 2 | . 2 . . Recyclers Shooed 2 | . 2 . . Parts Field Recycled . | . . . . Retrieved Matter . | . . . . Parts Self-Destructed . | . . . . Prevented . | . . . . Kills | -11 -10 -10 -10 ------- Run | Jun Mat Min Exi Combat Hostiles Destroyed 25 | . 19 6 . Guns 25 | . 19 6 . Classes Destroyed 8 | . 6 2 . Worker 2 | . 2 . . Builder 1 | . . 1 . Tunneler 1 | . 1 . . Hauler 2 | . 2 . . Recycler 2 | . 1 1 . Watcher 3 | . 3 . . Swarmer 3 | . . 3 . Grunt 22 | . 19 3 . Best Kill Streak 4 | . 4 4 . Combat Bots Only 4 | . 4 2 . Max Kills in Single Turn 1 | . 1 1 . Gunslinging . | . . . . Exploded . | . . . . Melee . | . . . . Uniques/NPCs Destroyed . | . . . . Combat | -11 -10 -10 -10 -------- Run | Jun Mat Min Exi Damage Taken 983 | . 695 167 121 Core 289 | . 162 72 55 Absorbed by Shields . | . . . . Regen/Repaired (Parts) 87 | . 87 . . Core Remaining (%) 100 | 100 . . . Volleys Fired 94 | . 79 15 . Largest 2 | . 2 2 . Hottest 90 | . 90 90 . Shots Fired 166 | . 135 30 1 Gun 166 | . 135 30 1 Cannon . | . . . . Launcher . | . . . . Special . | . . . . Kinetic 113 | . 113 . . Thermal 4 | . 4 . . Explosive . | . . . . Electromagnetic 49 | . 18 30 1 Robot Hit Streak 33 | . 33 5 . Robot Miss Streak 3 | . 2 3 . Penetration Max . | . . . . Secondary Targets 4 | . 2 2 . Max Gunslinging Chain 1 | . 1 1 . Shots Hit Robots 119 | . 103 16 . Core Hits 56 | . 47 9 . Critical Kills . | . . . . Critical Parts Destroyed . | . . . . Critical Strikes 1 | . . 1 . Corrupt 1 | . . 1 . Melee Attacks . | . . . . Impact . | . . . . Slashing . | . . . . Piercing . | . . . . Sneak Attacks . | . . . . Combat Hostiles . | . . . . Follow-up Attacks . | . . . . Damage Inflicted 1507 | . 1255 252 . Guns 1482 | . 1255 227 . Cannons . | . . . . Explosions 25 | . . 25 . Melee . | . . . . Ramming . | . . . . Kinetic 985 | . 985 . . Thermal 75 | . 50 25 . Explosive . | . . . . Electromagnetic 447 | . 220 227 . Impact . | . . . . Slashing . | . . . . Piercing . | . . . . Highest Corruption 2 | . 2 2 2 Average Corruption 2 | . 2 2 2 Corruption Purged . | . . . . Corruption Blocked . | . . . . Effects 18 | . 4 10 4 Message Errors 4 | . . 4 . Matter Fused 4 | . 2 2 . Heat Flow Errors 5 | . 1 3 1 Energy Discharges 3 | . 1 1 1 Data Loss (minor) 1 | . . . 1 Misfires 1 | . . . 1 Overload Shots . | . . . . Overflow Damage 4 | . . 4 . Projectiles . | . . . . Explosions 4 | . . 4 . Melee . | . . . . Knockbacks . | . . . . Impact . | . . . . Kinetic . | . . . . Secondary . | . . . . Self-Inflicted Damage 39 | . . 39 . Shots 1 | . . 1 . Rammed 1 | . 1 . . Targets Rammed 1 | . 1 . . Kicked . | . . . . Crushed . | . . . . Highest Temperature 259 | . 90 259 95 Average Temperature 55 | . 26 71 63 Received Heat Transfer 468 | . 408 60 . Effects 1 | . . 1 . Energy Bleed 1 | . . 1 . Siege Activations . | . . . . Robots Corrupted . | . . . . Combat Hostiles . | . . . . Parts Fried 1 | . 1 . . Impact Corruptions . | . . . . Robots Melted . | . . . . Combat Hostiles . | . . . . Parts Melted . | . . . . Heat Transferred 161 | . 111 50 . Parts Sabotaged . | . . . . Parts Stolen . | . . . . Parts Stripped . | . . . . Power Chain Reactions 1 | . . 1 . Missiles Intercepted . | . . . . Alert | -11 -10 -10 -10 ------- Run | Jun Mat Min Exi Peak Influence 278 | . 278 147 . Initial 93 | . . 93 . Average 139 | . 163 110 . Maximum Alert Level 1 | . 1 . . Low Security (%) 67 | 100 46 100 . Level 1 32 | . 53 . . Level 2 . | . . . . Level 3 . | . . . . Level 4 . | . . . . Level 5 . | . . . . High Security . | . . . . Max Security . | . . . . Squads Dispatched 6 | . 5 1 . Investigation 5 | . 4 1 . Extermination . | . . . . Reinforcement 1 | . 1 . . Assault . | . . . . Garrison . | . . . . Intercept . | . . . . Searches Triggered . | . . . . Construction Impeded . | . . . . Haulers Reinforced . | . . . . Active Scanning Responses . | . . . . Cargo Convoy Interrupts . | . . . . Stealth | -11 -10 -10 -10 --------- Run | Jun Mat Min Exi Distress Signals 1 | . 1 . . Communications Jammed . | . . . . Distress Signals . | . . . . Times Spotted 41 | . 34 6 1 Peak Tracking Total 9 | . 4 3 9 Tactical Retreats 4 | . 3 . 1 Traps | -11 -10 -10 -10 ------- Run | Jun Mat Min Exi Traps Triggered 3 | . 3 . . Indirectly . | . . . . Trap Hack Attempts . | . . . . Triggered . | . . . . Disarmed . | . . . . Reprogrammed . | . . . . Reused . | . . . . Traps Extracted . | . . . . Installed . | . . . . Triggered . | . . . . Machines | -11 -10 -10 -10 ---------- Run | Jun Mat Min Exi Machines Disabled 2 | . . 1 1 Max in Single Turn 1 | . . 1 1 Machines Repaired . | . . . . Machines Sabotaged . | . . . . Overloaded Fab Kills . | . . . . Hacking | -11 -10 -10 -10 --------- Run | Jun Mat Min Exi Machines Accessed 13 | . 10 1 2 Terminals 8 | . 7 1 . Fabricators . | . . . . Repair Stations 1 | . 1 . . Recycling Units 2 | . 2 . . Scanalyzers . | . . . . Garrison Access . | . . . . Total Hacks 39 | . 33 4 2 Successful 15 | . 13 . 2 Failed 23 | . 19 4 . Catastrophic 2 | . 2 . . Database Lockouts 1 | . 1 . . Manual 31 | . 26 4 1 Terminals 30 | . 26 4 . Fabricators . | . . . . Repair Stations 4 | . 4 . . Recycling Units 3 | . 3 . . Scanalyzers . | . . . . Garrison Access . | . . . . Terminal Hacks 10 | . 8 . 2 Record 1 | . . . 1 Robot Analysis 3 | . 3 . . Prototype ID Bank 5 | . 5 . . EX-Prototype ID Bank 1 | . . . 1 Fabricator Hacks . | . . . . Repair Station Hacks 3 | . 3 . . Scan Component 1 | . 1 . . Repair 1 | . 1 . . Refit 1 | . 1 . . Recycling Unit Hacks . | . . . . Scanalyzer . | . . . . Garrison Access Hacks . | . . . . Unauthorized Hacks 2 | . 2 . . Terminals . | . . . . Fabricators . | . . . . Repair Stations . | . . . . Recycling Units 2 | . 2 . . Tunnel 2 | . 2 . . Scanalyzers . | . . . . Garrison Access . | . . . . Data Cores Recovered . | . . . . Used . | . . . . Hacking Detections 8 | . 7 1 . Full Trace Events 8 | . 7 1 . Feedback Events . | . . . . Feedback Blocked . | . . . . Robot Schematics Acquired . | . . . . Robots Built . | . . . . Authchips . | . . . . Time . | . . . . Total Robot Build Rating . | . . . . Part Schematics Acquired . | . . . . Parts Built . | . . . . Authchips . | . . . . Time . | . . . . Total Part Build Rating . | . . . . Parts Repaired 1 | . 1 . . Time 26 | . 26 . . Parts Recycled . | . . . . Recycled Matter . | . . . . Retrieved Matter . | . . . . Retrieved Components . | . . . . Parts Scanalyzed . | . . . . Part Schematics Acquired . | . . . . Parts Damaged . | . . . . Bothacking | -11 -10 -10 -10 ------------ Run | Jun Mat Min Exi Used RIF Installer . | . . . . Robots Hacked . | . . . . Non-combat . | . . . . Combat . | . . . . Robot Hacks Applied . | . . . . Relay Couplers Released . | . . . . Fabnet Peak Effective % . | . . . . Robots Rewired . | . . . . Allies Hacked . | . . . . Hacks Repelled . | . . . . Allies | -11 -10 -10 -10 -------- Run | Jun Mat Min Exi Total Allies 1 | . . 1 . Largest Group 1 | . . 1 1 Highest-Rated Group 31 | . . 31 31 Highest-Rated Ally 31 | . . 31 31 Total Orders . | . . . . Ally Attacks . | . . . . Total Damage . | . . . . Kills . | . . . . Allies Corrupted . | . . . . Allies Melted . | . . . . Intel | -11 -10 -10 -10 ------- Run | Jun Mat Min Exi Robot Analysis Total 3 | . 3 . . Derelict Logs Recovered 1 | . . 1 . Drone Launches . | . . . . Drone Recoveries . | . . . . Exploration | -11 -10 -10 -10 ------------- Run | Jun Mat Min Exi Turns Passed 2519 | 42 1336 863 278 Spaces Moved 1561 | 36 722 599 204 Core 3 | 3 . . . Treads . | . . . . Legs . | . . . . Wheels 1558 | 33 722 599 204 Hover . | . . . . Flight . | . . . . Fastest Speed 50 | 50 90 130 135 Average Speed 124 | 87 117 132 135 Slowest Speed 135 | 100 130 135 135 Overloaded Moves . | . . . . Propulsion Burnouts . | . . . . Robots Hopped . | . . . . Cave-ins Triggered . | . . . . Exploration Rate (%) 62 | 4 96 100 50 Regions Visited 3 Branch Regions 2 Pre-discovered Areas 5 | . 2 2 1 Known Exits Taken . | . . . . Unknown Exits Taken 3 | 1 1 1 . Scrap Searched 1 | . . 1 . Spaces Dug . | . . . . Terrain Destroyed 4 | . . 4 . Melee . | . . . . Projectile . | . . . . AOE 4 | . . 4 . Terrain Rammed . | . . . . Walls Destroyed . | . . . . Machines Disabled . | . . . . Actions | -11 -10 -10 -10 --------- Run | Jun Mat Min Exi Total 1971 | 43 1083 637 208 Wait 255 | . 241 14 . Move 1558 | 35 721 598 204 Hop . | . . . . Pick Up 30 | 2 20 6 2 Fast Attach 12 | 5 6 1 . Attach 7 | 1 4 2 . Detach 1 | . 1 . . Swap 4 | . 4 . . Drop 9 | . 6 1 2 Fire 94 | . 79 15 . Melee . | . . . . Ram 1 | . 1 . . Kick . | . . . . Crush . | . . . . Escape Stasis . | . . . . Rewire . | . . . . Trap . | . . . . Miscellaneous . | . . . . Route ------- -11/Junkyard -10/Materials (discovered 4 exits: [*Mat x3] / *Min) -10/Mines (discovered 3 exits: [*Mat x2] / *Exi) -10/Exiles History --------- Turn | Location | Event 5 | -11/Junkyard | Discovered new exit (range 15) 43 | -11/Junkyard | Entered Materials 314 | -10/Materials | Build established: Mutant 406 | -10/Materials | Discovered new exit (range 16) 683 | -10/Materials | Lost 3 parts (1p1n1w) 768 | -10/Materials | Repaired Assault Rifle 877 | -10/Materials | Core integrity fell below 50% 957 | -10/Materials | Discovered new exit (range 16) 1148 | -10/Materials | Discovered new exit (range 13) 1205 | -10/Materials | Discovered new exit (range 14) 1367 | -10/Materials | Central database locked down 1379 | -10/Materials | Entered Mines 1402 | -10/Mines | Discovered new exit (range 9) 1442 | -10/Mines | Core integrity fell below 20% 1533 | -10/Mines | Found a hidden stash of uninstalled traps 1826 | -10/Mines | Learned Materials machine intel 1846 | -10/Mines | Learned location of Storage (-7) 1893 | -10/Mines | Discovered new exit (range 5) 1921 | -10/Mines | Escorted by a lone wolf Derelict 2189 | -10/Mines | Discovered new exit (range 9) 2235 | -10/Mines | Deemed a non-threat by the Exiles lab entrance 2242 | -10/Mines | Entered Exiles 2242 | -10/Exiles | Accompanied by 1 ally 2274 | -10/Exiles | Met 8R-AWN 2298 | -10/Exiles | Met EX-HEX 2352 | -10/Exiles | Met EX-DEC 2357 | -10/Exiles | Learned location of Zion (-7) 2379 | -10/Exiles | Met EX-BIN 2398 | -10/Exiles | Aligned with FarCom system 2399 | -10/Exiles | Given EX-Vault access code 2430 | -10/Exiles | Opened EX-Vault 2441 | -10/Exiles | Found Army-in-a-Box 2450 | -10/Exiles | Found Field Lobotomy Kit 2479 | -10/Exiles | Warned to stay clear of 0b10 Research branches 2517 | -10/Exiles | Attacked by the Exiles 2520 | -10/Exiles | Destroyed by DAS Turret with DAS Cannon Last Messages --------------- 02449_ Dropped Lgt. Assault Rifle. 02450_ Acquired Field Lobotomy Kit. EX-BIN: Oh yeah, I'd suggest you stay away from the 0b10 Research branches, since the FarCom signals could be picked up there, but you're welcome to try if you really want to. And if we have to leave here due to unforeseen circumstances, don't worry the FarCom system will continue to maintain contact via our distributed network. 02482_ System corrupted: Heat flow error (+127). EX-BIN: And don't even think about spreading that code around. We're gonna change it right after you leave. Most certainly not to something like 1234 which I did last time as a little joke and some thief managed to sneak in here and steal a few of HEX's prototypes. 02516_ System corrupted: FCS attempts to trigger Hvy. EM Pulse Gun. 02516_ System corrupted: Hvy. EM Pulse Gun misfires. 02516_ Machine disabled. 02517_ EXILES: Hostile robot within lab perimeter. Defensive protocols time, folks! 02519_ Lgt. Nuclear Core destroyed. 02519_ Hvy. EM Pulse Gun destroyed. Map ----- +----------------------------------------------------+ | ??????????????????????????????"""" ## #?????? | | ?????????????????????????????#""X" #?????? | | ?????????????????????????????#" #?????? | | ?????????????????????????????#" ## #?????? | | ?????????????????????????????#""""""?# #?##### | | ???????????????????????????????"###??# #?#"""" | | ?????????????????????????????????????# #?#"""" | | ?????????????????????????????????????# #?#"""" | | ????????????????????????????????????## ###"" " | | ????????????????????????????????????#" " | | ????????????????????????????????????#" | | ????????????????????????????????????#" | | ????????????????????????????????????#" | | ???????????????????????#####????????#" | | ??????????????????????? """#???????#" | | ??????????????????????"" """#???????## | | ?????????????????????#"" #????????# | | ?????????????????????#"" #????????#" "X" | | ?????????????????????#"" "#????????#" """ | | ?????????????????????? ""?????????#" """""" | | ???????????????????????" "?????????##" ####### | | ???????????????????????# #????????##"" #?????? | | ?????????????????????### ###?######"" #?????? | | ????????? """#####X# %#"###""""""" ##????? | | ???????? """""" " "" ##???# | | ???????? z @ "" """ " ##### | | ????????# " " | | ?????????## % | | ??????????### | | ????????????## | | ?????????????## | | ??????????????##" | | ???????????????#""" """""" | | ???????????????#" ######""" | | ????????????????" ""##????#####""" | | ????????????????" """##?????????##""" | | ????????????????" """##???????????#"""" | | ????????????????" ""#????????????#"" | | ???????????????? #?????????????"""" | | ?????????????????? ?????????????" | | ???????????????????? ???????????" | | ?????????????????????? ???????????? | | ????????????????????????? ????????????? | | ????????????????????????????????????????? | | ???????????????????????????????????????? "" | | ?????????????????????????????????????????##""" " " | | ???????????????????????????????????????????####""" | | ??????????????????????????????????????????????###" | | ????????????????????????????????????????????????## | | ?????????????????????????????????????????????????? | +----------------------------------------------------+ Best States ------------- Heat Dissipation 39 Energy Generation 14 Energy Capacity 250 Matter Stores 300 Matter Capacity 300 Sight Range 16 Terrain Scan Density 10 Evasion (%) 42 Item Schematics ----------------- None Robot Schematics ------------------ None Fabricated ------------ Nothing Alien Tech Used ----------------- None Achievements -------------- None Challenges ------------ None Game ------ Seed TerrabombLinearHumpback Manual? 0 Play Time 00:14:08 Cumulative 285.6 hours Start 2023.06.10 @ 22:41:18 End 2023.06.10 @ 22:54:24 Sessions 1 Manual Loads 0 Difficulty Rogue Special Mode None Game No. 841 Rogue 841 Adventurer 0 Explorer 0 Win Type - Total 17 Types 8/0/7/2/0/0/0/0/0 Lore% 90 Gallery% 87 Achievement% 79 Wizard Run 0 Options --------- ASCII 0 Keyboard 0 Movement Mouse Keybinds 0 Fullscreen 1 Font 16/SmallcapsGlow Map View 75x55 Tactical HUD 1 Map Filters NONE Filters NONE Steam 1 RUN: f5df8775-d26b-48a2-9f9c-15603e866407